lending/lending_fUSD_20251016
["ID","MTS","AMOUNT","RATE_DAILY","PERIOD"]
[391463993,1760613047860,-500.0,0.00016438,2]
[391463995,1760613047870,-500.0,0.00016438,2]
[391463996,1760613047880,-500.0,0.00016438,2]
[391463999,1760613047890,-500.0,0.00016438,2]
[391464001,1760613047899,-618.13643617,0.00016438,2]
[391464003,1760613047909,-151.0,0.00016438,2]
[391464004,1760613047918,-153.20849,0.00016438,2]
[391464006,1760613047928,-150.0,0.00016438,2]
[391464008,1760613047938,-2991.66,0.00016438,2]
[391464010,1760613047949,-2991.66,0.00016438,2]
[391464012,1760613047958,-2991.66,0.00016438,2]
[391464014,1760613047968,-2991.66,0.00016438,2]
[391464017,1760613047980,-2991.66,0.00016438,2]
[391464019,1760613047989,-2991.66,0.00016438,2]
[391464021,1760613047998,-151.0,0.00016438,2]
[391464023,1760613048008,-151.0,0.00016438,2]
[391464025,1760613048017,-151.0,0.00016438,2]
[391464027,1760613048026,-151.0,0.00016438,2]
[391464029,1760613048035,-151.0,0.00016438,2]
[391464031,1760613048044,-151.0,0.00016438,2]
[391464033,1760613048053,-533.570353,0.00016438,2]
[391464035,1760613048062,-151.0,0.00016438,2]
[391464037,1760613048072,-533.570353,0.00016438,2]
[391464039,1760613048081,-151.0,0.00016438,2]
[391464041,1760613048090,-533.570353,0.00016438,2]
[391464043,1760613048099,-205.509849,0.00016438,2]
[391464045,1760613048108,-533.570353,0.00016438,2]
[391464047,1760613048117,-533.570353,0.00016438,2]
[391464049,1760613048126,-533.570353,0.00016438,2]
[391464051,1760613048135,-533.570353,0.00016438,2]
[391464053,1760613048147,-533.570353,0.00016438,2]
[391464055,1760613048157,-151.0,0.00016438,2]
[391464057,1760613048167,-150.0,0.00016438,2]
[391464059,1760613048176,-500.0,0.00016438,2]
[391464061,1760613048186,-222.97276384,0.00016438,2]
[391464062,1760613048196,-500.0,0.00016438,2]
[391464064,1760613048205,-196.838822,0.00016438,2]
[391464065,1760613048214,-196.838822,0.00016438,2]
[391464067,1760613048223,-196.838822,0.00016438,2]
[391464069,1760613048232,-196.838822,0.00016438,2]
[391464070,1760613048241,-196.838822,0.00016438,2]
[391464072,1760613048250,-196.838822,0.00016438,2]
[391464074,1760613048259,-196.838822,0.00016438,2]
[391464075,1760613048268,-196.838822,0.00016438,2]
[391464077,1760613048278,-151.0,0.00016438,2]
[391464079,1760613048287,-151.0,0.00016438,2]
[391464080,1760613048297,-825.54,0.00016438,2]
[391464082,1760613048306,-825.54,0.00016438,2]
[391464084,1760613048315,-825.54,0.00016438,2]
[391464085,1760613048324,-825.54,0.00016438,2]
[391464087,1760613048334,-297.12166,0.00016438,2]
[391464089,1760613048343,-5859.57,0.00016438,2]
[391464090,1760613048353,-5859.57,0.00016438,2]
[391464092,1760613048363,-5859.57,0.00016438,2]
[391464094,1760613048372,-5859.57,0.00016438,2]
[391464096,1760613048381,-5859.57,0.00016438,2]
[391464097,1760613048390,-5859.57,0.00016438,2]
[391464099,1760613048399,-5859.57,0.00016438,2]
[391464101,1760613048408,-5859.57,0.00016438,2]
[391464102,1760613048418,-5859.57,0.00016438,2]
[391464104,1760613048427,-5859.57,0.00016438,2]
[391464106,1760613048436,-5859.57,0.00016438,2]
[391464107,1760613048445,-5859.57,0.00016438,2]
[391464109,1760613048455,-5859.57,0.00016438,2]
[391464111,1760613048464,-5859.57,0.00016438,2]
[391464113,1760613048473,-5859.57,0.00016438,2]
[391464114,1760613048483,-5859.57,0.00016438,2]
[391464116,1760613048492,-5859.57,0.00016438,2]
[391464118,1760613048502,-5859.57,0.00016438,2]
[391464119,1760613048511,-5859.57,0.00016438,2]
[391464121,1760613048520,-5859.57,0.00016438,2]
[391464124,1760613048538,-5859.57,0.00016438,2]
[391464126,1760613048552,-5859.57,0.00016438,2]
[391464127,1760613048562,-5859.57,0.00016438,2]
[391464129,1760613048573,-5859.58978916,0.00016438,2]
[391464131,1760613048583,-618.32,0.00016438,2]
[391464133,1760613048592,-618.32,0.00016438,2]
[391464135,1760613048602,-618.32,0.00016438,2]
[391464136,1760613048611,-618.32,0.00016438,2]
[391464138,1760613048620,-151.0,0.00016438,2]
[391464140,1760613048630,-151.0,0.00016438,2]
[391464142,1760613048640,-151.0,0.00016438,2]
[391464144,1760613048649,-151.0,0.00016438,2]
[391464146,1760613048662,-268.334176,0.00016438,2]
[391464147,1760613048672,-151.0,0.00016438,2]
[391464149,1760613048681,-150.0,0.00016438,2]
[391464151,1760613048691,-150.0,0.00016438,2]
[391464153,1760613048701,-500.0,0.00016438,2]
[391464154,1760613048711,-150.0,0.00016438,2]
[391464156,1760613048720,-150.0,0.00016438,2]
[391464158,1760613048730,-150.0,0.00016438,2]
[391464160,1760613048741,-150.0,0.00016438,2]
[391464162,1760613048750,-151.0,0.00016438,2]
[391464163,1760613048759,-151.0,0.00016438,2]
[391464165,1760613048769,-150.0,0.00016438,2]
[391464167,1760613048778,-151.0,0.00016438,2]
[391464169,1760613048790,-151.0,0.00016438,2]
[391464171,1760613048799,-151.0,0.00016438,2]
[391464172,1760613048809,-166.581524,0.00016438,2]
[391464174,1760613048818,-151.0,0.00016438,2]
[391464176,1760613048827,-151.0,0.00016438,2]
[391464178,1760613048836,-300.0,0.00016438,2]
[391464180,1760613048846,-300.0,0.00016438,2]
[391464181,1760613048855,-300.0,0.00016438,2]
[391464183,1760613048864,-300.0,0.00016438,2]
[391464185,1760613048874,-300.0,0.00016438,2]
[391464187,1760613048884,-300.0,0.00016438,2]
[391464189,1760613048894,-300.0,0.00016438,2]
[391464191,1760613048907,-300.0,0.00016438,2]
[391464192,1760613048917,-300.0,0.00016438,2]
[391464194,1760613048928,-300.0,0.00016438,2]
[391464196,1760613048937,-300.0,0.00016438,2]
[391464198,1760613048948,-300.0,0.00016438,2]
[391464200,1760613048958,-300.0,0.00016438,2]
[391464202,1760613048967,-300.0,0.00016438,2]
[391464203,1760613048977,-241.81192344,0.00016438,2]
[391464205,1760613048987,-151.0,0.00016438,2]
[391464207,1760613048997,-151.0,0.00016438,2]
[391464209,1760613049007,-151.0,0.00016438,2]
[391464210,1760613049017,-341.91962985,0.00016438,2]
[391464212,1760613049027,-248.250939,0.00016438,2]
[391464214,1760613049037,-7125.91,0.00016438,2]
[391464217,1760613049047,-2119.98370314,0.00016441,2]
[391464219,1760613049057,-5908.97477084,0.00016456,2]
[391464221,1760613049067,-500.24006841,0.00016473,2]
[391464223,1760613049077,-500.0,0.00016473,2]
[391464224,1760613049086,-502.92788141,0.00016473,2]
[391464225,1760613049096,-501.62283572,0.00016473,2]
[391464226,1760613049105,-500.33311132,0.00016473,2]
[391464227,1760613049114,-500.0,0.00016473,2]
[391464228,1760613049124,-500.56495829,0.00016473,2]
[391464229,1760613049133,-319.33010017,0.00016473,2]
[391464230,1760613049143,-500.0,0.00016473,2]
[391464231,1760613049152,-500.0,0.00016473,2]
[391464232,1760613049161,-500.0,0.00016473,2]
[391464233,1760613049171,-500.0,0.00016473,2]
[391464234,1760613049180,-299.69672786,0.00016493,2]
[391464235,1760613049190,-150.0,0.00016493,2]
[391464236,1760613049199,-150.0,0.00016493,2]
[391464238,1760613049209,-150.0,0.00016493,2]
[391464240,1760613049222,-150.0,0.00016493,2]
[391464242,1760613049231,-150.0,0.00016493,2]
[391464244,1760613049241,-150.0,0.00016493,2]
[391464246,1760613049251,-150.0,0.00016493,2]
[391464248,1760613049261,-150.0,0.00016493,2]
[391464251,1760613049275,-150.0,0.00016493,2]
[391464253,1760613049285,-150.0,0.00016493,2]
[391464255,1760613049294,-500.0,0.00016493,2]
[391464257,1760613049304,-500.0,0.00016493,2]
[391464259,1760613049313,-150.0,0.00016493,2]
[391464261,1760613049323,-500.0,0.00016493,2]
[391464263,1760613049333,-150.0,0.00016493,2]
[391464265,1760613049343,-266.5212348,0.00016493,2]
[391464267,1760613049352,-155.0,0.00016499,2]
[391464269,1760613049362,-150.0,0.00016548,2]
[391464271,1760613049372,-200.0,0.00016548,2]
[391464273,1760613049382,-150.0,0.00016548,2]
[391464275,1760613049392,-270.35834474,0.00016548,2]
[391464277,1760613049401,-150.0,0.00016548,2]
[391464279,1760613049411,-200.0,0.00016548,2]
[391464282,1760613049421,-200.0,0.00016548,2]
[391464284,1760613049431,-150.0,0.00016548,2]
[391464286,1760613049441,-200.0,0.00016548,2]
[391464288,1760613049450,-500.0,0.00016548,2]
[391464290,1760613049460,-500.0,0.00016548,2]
[391464292,1760613049469,-200.0,0.00016548,2]
[391464294,1760613049479,-500.0,0.00016548,2]
[391464296,1760613049490,-407.0,0.00016598,2]
[391464298,1760613049500,-150.0,0.00016602,2]
[391464300,1760613049510,-150.0,0.00016602,2]
[391464302,1760613049519,-150.0,0.00016602,2]
[391464304,1760613049529,-201.9469448,0.00016602,2]
[391464306,1760613049539,-500.0,0.00016602,2]
[391464309,1760613049549,-625.70917629,0.00016602,2]
[391464311,1760613049559,-150.0,0.00016602,2]
[391464313,1760613049568,-252.91408941,0.00016657,2]
[391464315,1760613049578,-209.71229084,0.00016657,2]
[391464317,1760613049587,-500.0,0.00016657,2]
[391464319,1760613049597,-500.0,0.00016712,2]
[391464321,1760613049607,-407.0,0.00016728,2]
[391464323,1760613049617,-257.91778498,0.00016749,2]
[391464325,1760613049627,-500.0,0.00016767,2]
[391464328,1760613049641,-1000.0,0.00016792,2]
[391464329,1760613049651,-168.0,0.00016813,2]
[391464332,1760613049667,-168.0,0.0001682,2]
[391464334,1760613049680,-500.0,0.00016822,2]
[391464336,1760613049699,-1091.0,0.00016868,2]
[391464338,1760613049713,-500.0,0.00016876,2]
[391464340,1760613049725,-168.0,0.00016894,2]
[391464342,1760613049735,-923.2911644,0.00016908,2]
[391464344,1760613049746,-500.0,0.00016933,2]
[391464346,1760613049755,-168.0,0.00016934,2]
[391464348,1760613049765,-168.0,0.00016951,2]
[391464350,1760613049774,-168.0,0.00016992,2]
[391464352,1760613049785,-162.0,0.00017,2]
[391464354,1760613049796,-265.93616099,0.00017,2]
[391464356,1760613049806,-469.3039816,0.00017,2]
[391464358,1760613049815,-151.0,0.00017,2]
[391464360,1760613049825,-151.0,0.00017,2]
[391464363,1760613049835,-615.0156,0.00017,2]
[391464365,1760613049846,-500.0,0.0001702,2]
[391464367,1760613049856,-1000.0,0.00017021,2]
[391464369,1760613049866,-1000.0,0.00017021,2]
[391464371,1760613049876,-1000.0,0.00017021,2]
[391464373,1760613049886,-501.72165447,0.00017021,2]
[391464375,1760613049896,-1101.6937293,0.00017021,2]
[391464377,1760613049906,-1000.0,0.00017021,2]
[391464379,1760613049916,-475.57272817,0.00017028,2]
[391464381,1760613049927,-168.0,0.00017034,2]
[391464383,1760613049937,-407.0,0.00017047,2]
[391464386,1760613049947,-168.0,0.00017081,2]
[391464388,1760613049957,-265.93616099,0.000171,2]
[391464390,1760613049967,-469.3039816,0.000171,2]
[391464392,1760613049978,-495.90118057,0.00017141,2]
[391464394,1760613049987,-9267.65298039,0.00017177,2]
[391464396,1760613049997,-168.0,0.00017277,2]
[391464398,1760613050007,-265.93616099,0.000173,2]
[391464400,1760613050018,-469.3039816,0.000173,2]
[391464402,1760613050027,-500.0,0.00017333,2]
[391464404,1760613050037,-500.0,0.00017333,2]
[391464406,1760613050047,-1054.34,0.00017333,2]
[391464408,1760613050056,-826.35,0.00017333,2]
[391464410,1760613050066,-1512.37,0.00017333,2]
[391464412,1760613050076,-663.33,0.00017333,2]
[391464414,1760613050085,-151.0,0.00017333,2]
[391464416,1760613050095,-151.0,0.00017333,2]
[391464418,1760613050105,-825.54,0.00017333,2]
[391464420,1760613050115,-618.32,0.00017333,2]
[391464422,1760613050124,-151.0,0.00017333,2]
[391464424,1760613050134,-151.0,0.00017333,2]
[391464426,1760613050144,-151.0,0.00017333,2]
[391464428,1760613050154,-151.0,0.00017333,2]
[391464430,1760613050163,-151.0,0.00017333,2]
[391464432,1760613050173,-151.0,0.00017333,2]
[391464435,1760613050183,-151.0,0.00017333,2]
[391464436,1760613050192,-151.0,0.00017333,2]
[391464439,1760613050203,-151.0,0.00017333,2]
[391464441,1760613050213,-151.0,0.00017333,2]
[391464443,1760613050222,-151.0,0.00017333,2]
[391464445,1760613050232,-206.0141053,0.00017333,2]
[391464447,1760613050241,-265.93616099,0.000175,2]
[391464449,1760613050251,-469.3039816,0.000175,2]
[391464451,1760613050260,-500.64578945,0.00017568,2]
[391464453,1760613050269,-634.71313861,0.00017568,2]
[391464455,1760613050281,-1000.51308561,0.00017568,2]
[391464457,1760613050292,-1411.12153691,0.00017568,2]
[391464459,1760613050302,-265.93616099,0.000177,2]
[391464461,1760613050313,-300.0,0.00017746,2]
[391464463,1760613050322,-1091.0,0.00017755,2]
[391464465,1760613050332,-6239.82627478,0.00017789,2]
[391464467,1760613050341,-156.88242783,0.00017799,2]
[391464469,1760613050351,-251.81837537,0.00017808,2]
[391464471,1760613050361,-500.0,0.00017899,2]
[391464474,1760613050371,-825.49,0.00017899,2]
[391464476,1760613050380,-822.29,0.00017899,2]
[391464478,1760613050391,-500.0,0.00017899,2]
[391464480,1760613050400,-300.0,0.00017899,2]
[391464482,1760613050410,-709.59,0.00017899,2]
[391464484,1760613050420,-151.0,0.00017899,2]
[391464486,1760613050429,-2991.66,0.00017899,2]
[391464488,1760613050439,-69798.77302712,0.000179,2]
[391464490,1760613050448,-151.0,0.000179,2]
[391464492,1760613050457,-151.0,0.000179,2]
[391464494,1760613050469,-151.0,0.000179,2]
[391464496,1760613050478,-151.0,0.000179,2]
[391464498,1760613050489,-151.0,0.000179,2]
[391464501,1760613050506,-151.0,0.000179,2]
[391464502,1760613050518,-533.570353,0.000179,2]
[391464504,1760613050527,-151.0,0.000179,2]
[391464506,1760613050537,-533.570353,0.000179,2]
[391464508,1760613050546,-533.570353,0.000179,2]
[391464511,1760613050556,-533.570358,0.000179,2]
[391464513,1760613050566,-196.838822,0.000179,2]
[391464515,1760613050575,-196.838822,0.000179,2]
[391464517,1760613050584,-196.838822,0.000179,2]
[391464519,1760613050594,-196.838826,0.000179,2]
[391464521,1760613050603,-151.0,0.000179,2]
[391464523,1760613050613,-398.0,0.00017907,2]
[391464525,1760613050623,-1173.64012366,0.00018,2]
[391464527,1760613050632,-1000.0,0.00018,4]
[391464529,1760613050642,-7132.01843904,0.00018,2]
[391464531,1760613050652,-177.02879127,0.00018,2]
[391464533,1760613050665,-177.02879128,0.00018,2]
[391464535,1760613050675,-5908.97477084,0.00018011,2]
[391464538,1760613050684,-256.84,0.00018082,2]
[391464540,1760613050694,-12356.87064052,0.00018164,2]
[391464542,1760613050704,-151.0,0.00018164,2]
[391464544,1760613050714,-151.0,0.00018164,2]
[391464546,1760613050724,-151.0,0.00018164,2]
[391464548,1760613050733,-151.0,0.00018164,2]
[391464550,1760613050744,-151.0,0.00018164,2]
[391464552,1760613050755,-151.0,0.00018164,2]
[391464554,1760613050765,-151.0,0.00018164,2]
[391464556,1760613050775,-151.0,0.00018164,2]
[391464558,1760613050785,-151.0,0.00018164,2]
[391464560,1760613050796,-151.0,0.00018164,2]
[391464562,1760613050807,-151.0,0.00018164,2]
[391464565,1760613050822,-151.0,0.00018164,2]
[391464567,1760613050833,-177.02879128,0.000182,2]
[391464569,1760613050844,-836.0,0.000182,2]
[391464571,1760613050855,-556.0,0.000182,2]
[391464573,1760613050866,-166.31,0.00018287,2]
[391464575,1760613050876,-1600.0,0.0001838,2]
[391464577,1760613050887,-220.94116472,0.0001844,2]
[391464579,1760613050897,-500.0,0.00018449,2]
[391464581,1760613050908,-500.0,0.00018449,2]
[391464583,1760613050919,-500.0,0.00018449,2]
[391464585,1760613050930,-500.0,0.00018449,2]
[391464587,1760613050939,-825.49,0.00018449,2]
[391464589,1760613050950,-822.29,0.00018449,2]
[391464591,1760613050966,-500.0,0.00018449,2]
[391464593,1760613050976,-302.77730015,0.00018449,2]
[391464595,1760613050986,-709.59,0.00018449,2]
[391464597,1760613050998,-1054.34,0.00018449,2]
[391464599,1760613051009,-826.35,0.00018449,2]
[391464601,1760613051020,-1512.37,0.00018449,2]
[391464603,1760613051030,-500.0,0.00018449,2]
[391464605,1760613051039,-663.33,0.00018449,2]
[391464607,1760613051049,-500.0,0.00018449,2]
[391464609,1760613051059,-500.0,0.00018449,2]
[391464611,1760613051068,-2991.66,0.00018449,2]
[391464613,1760613051078,-180.77914408,0.00018449,2]
[391464615,1760613051086,-825.54,0.00018449,2]
[391464617,1760613051096,-618.32,0.00018449,2]
[391464619,1760613051106,-249402.78295114,0.0001845,3]
[391464621,1760613051116,-151.0,0.0001845,2]
[391464623,1760613051125,-151.0,0.0001845,2]
[391464625,1760613051135,-151.0,0.0001845,2]
[391464627,1760613051144,-151.0,0.0001845,2]
[391464629,1760613051154,-151.0,0.0001845,2]
[391464631,1760613051164,-151.0,0.0001845,2]
[391464633,1760613051175,-151.0,0.0001845,2]
[391464635,1760613051184,-151.0,0.0001845,2]
[391464637,1760613051193,-151.0,0.0001845,2]
[391464639,1760613051207,-151.0,0.0001845,2]
[391464641,1760613051216,-151.0,0.0001845,2]
[391464643,1760613051226,-151.0,0.0001845,2]
[391464645,1760613051236,-500.0,0.00018497,2]
[391464647,1760613051246,-617.46404489,0.00018499,2]
[391464649,1760613051255,-500.0,0.00018499,2]
[391464651,1760613051265,-500.0,0.00018499,2]
[391464653,1760613051275,-500.0,0.00018499,2]
[391464655,1760613051284,-500.0,0.00018499,2]
[391464657,1760613051294,-500.0,0.00018499,2]
[391464660,1760613051304,-500.0,0.00018499,2]
[391464662,1760613051313,-825.49,0.00018499,2]
[391464664,1760613051322,-825.49,0.00018499,2]
[391464666,1760613051332,-822.29,0.00018499,2]
[391464668,1760613051342,-822.29,0.00018499,2]
[391464669,1760613051353,-500.0,0.00018499,2]
[391464670,1760613051365,-500.0,0.00018499,2]
[391464671,1760613051374,-709.59,0.00018499,2]
[391464672,1760613051383,-709.59,0.00018499,2]
[391464673,1760613051392,-1054.34,0.00018499,2]
[391464674,1760613051401,-1054.34,0.00018499,2]
[391464675,1760613051411,-826.35,0.00018499,2]
[391464676,1760613051420,-826.35,0.00018499,2]
[391464677,1760613051429,-1512.37,0.00018499,2]
[391464679,1760613051439,-1512.37,0.00018499,2]
[391464681,1760613051448,-500.0,0.00018499,2]
[391464683,1760613051460,-500.0,0.00018499,2]
[391464685,1760613051470,-663.33,0.00018499,2]
[391464687,1760613051480,-663.33,0.00018499,2]
[391464689,1760613051490,-500.0,0.00018499,2]
[391464691,1760613051501,-500.0,0.00018499,2]
[391464694,1760613051511,-500.0,0.00018499,2]
[391464696,1760613051521,-2991.66,0.00018499,2]
[391464698,1760613051530,-2991.66,0.00018499,2]
[391464700,1760613051540,-825.54,0.00018499,2]
[391464702,1760613051550,-825.54,0.00018499,2]
[391464737,1760613051871,-618.32,0.00018499,2]
[391464740,1760613051881,-618.32,0.00018499,2]
[391464742,1760613051891,-236852.68417325,0.000185,2]
[391464805,1760613052473,-832.65877334,0.000185,2]
[391464808,1760613052484,-2292.86800869,0.000185,2]
[391464823,1760613052612,-1077.0,0.000185,2]
[391464949,1760613054093,-966.5560137,0.000185,2]
[391464953,1760613054129,-472.86339972,0.000185,2]
[391464966,1760613054241,-1856.86746935,0.000185,2]
[391464969,1760613054252,-7789.78199999,0.000185,2]
[391464974,1760613054287,-856.37184832,0.000185,2]
[391464976,1760613054299,-472.01634291,0.000185,2]
[391464978,1760613054310,-643.75442114,0.000185,2]
[391464980,1760613054320,-4824.38422851,0.000185,2]
[391465263,1760613057096,-151.0,0.000162,2]
[391465265,1760613057106,-151.0,0.000162,2]
[391465267,1760613057124,-151.0,0.00016438,2]
[391465270,1760613057134,-151.0,0.00016438,2]
[391465272,1760613057144,-151.0,0.00016438,2]
[391465274,1760613057153,-151.0,0.00016438,2]
[391465276,1760613057163,-151.0,0.000179,2]
[391465278,1760613057172,-151.0,0.000179,2]
[391465280,1760613057181,-151.0,0.0001845,2]
[391465281,1760613057192,-151.0,0.0001845,2]
[391465284,1760613057202,-73462.13618658,0.000185,2]
[391465286,1760613057212,-10855.88328224,0.000185,2]
[391465288,1760613057221,-6436.0,0.0001852,2]
[391465289,1760613057231,-556.0,0.0001852,2]
[391465291,1760613057241,-6440.0,0.0001852,2]
[391465293,1760613057250,-1000.0,0.00018657,2]
[391465295,1760613057260,-1091.0,0.0001869,2]
[391465297,1760613057270,-256.84,0.0001876,2]
[391465299,1760613057279,-150.57538399,0.00018904,5]
[391465301,1760613057288,-510.03318237,0.00018999,2]
[391465303,1760613057298,-500.0,0.00018999,2]
[391465305,1760613057307,-500.0,0.00018999,2]
[391465307,1760613057318,-500.0,0.00018999,2]
[391465309,1760613057327,-500.0,0.00018999,2]
[391465311,1760613057336,-825.49,0.00018999,2]
[391465313,1760613057345,-825.49,0.00018999,2]
[391465315,1760613057354,-822.29,0.00018999,2]
[391465317,1760613057363,-822.29,0.00018999,2]
[391465320,1760613057373,-500.0,0.00018999,2]
[391465321,1760613057383,-500.0,0.00018999,2]
[391465324,1760613057393,-709.59,0.00018999,2]
[391465325,1760613057402,-709.59,0.00018999,2]
[391465327,1760613057411,-1054.34,0.00018999,2]
[391465329,1760613057420,-1054.34,0.00018999,2]
[391465331,1760613057430,-826.35,0.00018999,2]
[391465334,1760613057439,-826.35,0.00018999,2]
[391465336,1760613057448,-1512.37,0.00018999,2]
[391465338,1760613057457,-1512.37,0.00018999,2]
[391465340,1760613057468,-500.0,0.00018999,2]
[391465342,1760613057478,-500.0,0.00018999,2]
[391465344,1760613057486,-663.33,0.00018999,2]
[391465346,1760613057495,-663.33,0.00018999,2]
[391465348,1760613057506,-500.0,0.00018999,2]
[391465350,1760613057516,-500.0,0.00018999,2]
[391465352,1760613057524,-2991.66,0.00018999,2]
[391465354,1760613057533,-825.54,0.00018999,2]
[391465356,1760613057542,-825.54,0.00018999,2]
[391465358,1760613057551,-618.32,0.00018999,2]
[391465360,1760613057560,-618.32,0.00018999,2]
[391465362,1760613057570,-1000.0,0.00019,4]
[391465364,1760613057579,-2296.08001352,0.00019,2]
[391465366,1760613057588,-615.0156,0.00019,2]
[391465368,1760613057597,-574.0,0.00019,2]
[391465370,1760613057607,-15446.08830065,0.00019152,2]
[391465372,1760613057616,-2991.66,0.00019177,2]
[391465374,1760613057625,-2000.0,0.00019178,7]
[391465376,1760613057634,-2000.0,0.00019178,7]
[391465378,1760613057643,-2000.0,0.00019178,7]
[391465380,1760613057653,-2000.0,0.00019178,7]
[391465382,1760613057663,-2000.0,0.00019178,7]
[391465384,1760613057675,-2000.0,0.00019178,7]
[391465386,1760613057684,-2000.0,0.00019178,7]
[391465388,1760613057693,-2000.0,0.00019178,7]
[391465390,1760613057702,-2000.0,0.00019178,7]
[391465392,1760613057712,-2000.0,0.00019178,7]
[391465394,1760613057722,-2000.0,0.00019178,7]
[391465396,1760613057731,-2000.0,0.00019178,7]
[391465398,1760613057742,-2000.0,0.00019178,7]
[391465400,1760613057750,-2000.0,0.00019178,7]
[391465402,1760613057759,-2000.0,0.00019178,7]
[391465404,1760613057768,-2000.0,0.00019178,7]
[391465406,1760613057777,-2000.0,0.00019178,7]
[391465408,1760613057786,-1706.95441433,0.00019178,7]
[391465410,1760613057795,-156.587,0.00019178,2]
[391465412,1760613057804,-3553.84,0.00019178,2]
[391465414,1760613057813,-151.0,0.00019178,2]
[391465416,1760613057822,-151.0,0.00019178,2]
[391465418,1760613057832,-475.57272817,0.0001918,7]
[391465420,1760613057841,-166.29,0.00019205,2]
[391465422,1760613057850,-6239.82627478,0.00019233,2]
[391465424,1760613057859,-495.90118057,0.00019383,2]
[391465426,1760613057868,-256.84,0.00019438,2]
[391465428,1760613057877,-8000.0,0.00019463,7]
[391465430,1760613057886,-5512.0,0.000195,3]
[391465432,1760613057895,-5908.97477084,0.00019567,2]
[391465434,1760613057904,-1091.0,0.00019674,2]
[391465436,1760613057914,-1725.0,0.000197,2]
[391465438,1760613057923,-2000.0,0.000197,2]
[391465440,1760613057931,-872.0,0.00019832,2]
[391465442,1760613057941,-872.0,0.00019832,2]
[391465444,1760613057951,-872.0,0.00019832,2]
[391465446,1760613057960,-872.0,0.00019832,2]
[391465448,1760613057970,-872.0,0.00019832,2]
[391465450,1760613057979,-872.0,0.00019832,2]
[391465452,1760613057987,-872.0,0.00019832,2]
[391465454,1760613057997,-872.0,0.00019832,2]
[391465456,1760613058007,-872.0,0.00019832,2]
[391465458,1760613058016,-872.0,0.00019832,2]
[391465460,1760613058025,-872.0,0.00019832,2]
[391465462,1760613058034,-872.0,0.00019832,2]
[391465464,1760613058044,-872.0,0.00019832,2]
[391465466,1760613058053,-872.0,0.00019832,2]
[391465468,1760613058062,-472.0,0.00019832,2]
[391465470,1760613058071,-472.0,0.00019832,2]
[391465472,1760613058079,-472.0,0.00019832,2]
[391465474,1760613058088,-472.0,0.00019832,2]
[391465476,1760613058097,-472.0,0.00019832,2]
[391465478,1760613058107,-472.0,0.00019832,2]
[391465480,1760613058117,-472.0,0.00019832,2]
[391465482,1760613058126,-472.0,0.00019832,2]
[391465484,1760613058135,-472.0,0.00019832,2]
[391465486,1760613058144,-472.0,0.00019832,2]
[391465488,1760613058153,-472.0,0.00019832,2]
[391465490,1760613058163,-472.0,0.00019832,2]
[391465492,1760613058179,-472.0,0.00019832,2]
[391465495,1760613058188,-472.0,0.00019832,2]